fUSD/lending_fUSD_20250326
["ID","MTS","AMOUNT","RATE_DAILY","PERIOD"]
[356702150,1742989871696,-500.0,0.00041643,30]
[356702151,1742989871706,-2936.97,0.00041643,30]
[356702152,1742989871716,-571.93209674,0.00041643,30]
[356702153,1742989871727,-561.84975182,0.00041643,30]
[356702154,1742989871736,-567.18892625,0.00041643,30]
[356702155,1742989871746,-500.0,0.00041643,120]
[356702156,1742989871755,-525.7556535,0.00041643,30]
[356702157,1742989871764,-513.38554083,0.00041643,30]
[356702158,1742989871774,-500.0,0.00041643,30]
[356702159,1742989871783,-508.45456203,0.00041643,30]
[356702160,1742989871792,-592.84782512,0.00041643,30]
[356702161,1742989871801,-500.0,0.00041643,2]
[356702162,1742989871810,-558.31258308,0.00041643,30]
[356702163,1742989871819,-506.92156017,0.00041643,30]
[356702164,1742989871829,-233.31007582,0.00041643,20]
[356702165,1742989871838,-500.0,0.00041643,30]
[356702166,1742989871847,-500.0,0.00041643,30]
[356702167,1742989871856,-500.0,0.00041643,30]
[356702168,1742989871866,-549.7166577,0.00041643,30]
[356702169,1742989871875,-503.96088728,0.00041643,30]
[356702170,1742989871884,-500.0,0.00041643,30]
[356702171,1742989871893,-500.0,0.00041643,30]
[356702172,1742989871903,-547.14725819,0.00041643,30]
[356702173,1742989871912,-516.11474187,0.00041643,30]
[356702174,1742989871921,-510.47711689,0.00041643,30]
[356702175,1742989871931,-601.73313827,0.00041643,30]
[356702176,1742989871940,-510.89582206,0.00041643,30]
[356702177,1742989871950,-500.0,0.00041643,30]
[356702178,1742989871959,-533.4738578,0.00041643,30]
[356702179,1742989871968,-512.06209798,0.00041643,30]
[356702180,1742989871978,-362.16535685,0.00041643,30]
[356702181,1742989871987,-510.68960539,0.00041643,30]
[356702182,1742989871996,-500.0,0.00041643,30]
[356702183,1742989872006,-538.61,0.00041643,10]
[356702184,1742989872015,-500.0,0.00041643,30]
[356702185,1742989872024,-500.0,0.00041643,30]
[356702186,1742989872034,-818.4,0.00041643,30]
[356702187,1742989872043,-500.0,0.00041643,30]
[356702188,1742989872052,-500.0,0.00041643,30]
[356702189,1742989872061,-517.98449236,0.00041643,30]
[356702190,1742989872071,-500.0,0.00041643,30]
[356702191,1742989872080,-500.0,0.00041643,30]
[356702192,1742989872093,-500.0,0.00041643,30]
[356702193,1742989872103,-500.0,0.00041643,30]
[356702194,1742989872112,-180.41389038,0.00041643,30]
[356702195,1742989872122,-556.50799145,0.00041643,30]
[356702196,1742989872131,-1205.22,0.00041643,30]
[356702197,1742989872142,-500.0,0.00041643,30]
[356702198,1742989872151,-500.0,0.00041643,30]
[356702199,1742989872161,-500.0,0.00041643,30]
[356702200,1742989872171,-444.16957512,0.00041643,30]
[356702201,1742989872181,-500.0,0.00041643,30]
[356702202,1742989872192,-500.0,0.00041643,30]
[356702203,1742989872203,-465.66043516,0.00041643,2]
[356702204,1742989872215,-500.0,0.00041643,30]
[356702205,1742989872223,-500.0,0.00041643,30]
[356702206,1742989872232,-500.0,0.00041643,30]
[356702207,1742989872242,-500.0,0.00041643,30]
[356702208,1742989872251,-500.0,0.00041643,30]
[356702209,1742989872260,-500.0,0.00041643,30]
[356702210,1742989872269,-201.75973103,0.00041643,30]
[356702211,1742989872279,-500.0,0.00041643,30]
[356702212,1742989872289,-500.0,0.00041643,30]
[356702213,1742989872298,-534.77887025,0.00041643,30]
[356702214,1742989872307,-500.0,0.00041643,30]
[356702215,1742989872317,-541.64507448,0.00041643,30]
[356702216,1742989872326,-500.0,0.00041643,30]
[356702217,1742989872336,-500.0,0.00041643,30]
[356702218,1742989872345,-500.0,0.00041643,30]
[356702219,1742989872355,-500.0,0.00041643,30]
[356702220,1742989872364,-500.0,0.00041643,30]
[356702221,1742989872373,-500.0,0.00041643,30]
[356702222,1742989872383,-500.0,0.00041643,30]
[356702223,1742989872393,-526.33300299,0.00041643,30]
[356702224,1742989872402,-503.44883545,0.00041643,30]
[356702225,1742989872411,-500.0,0.00041643,30]
[356702226,1742989872420,-626.89842796,0.00041643,30]
[356702227,1742989872430,-500.0,0.00041643,30]
[356702228,1742989872440,-500.0,0.00041643,30]
[356702229,1742989872450,-500.0,0.00041643,30]
[356702230,1742989872461,-500.0,0.00041643,30]
[356702231,1742989872470,-466.14675366,0.00041643,30]
[356702232,1742989872479,-524.86990147,0.00041643,30]
[356702233,1742989872489,-442.35218721,0.00041643,30]
[356702234,1742989872499,-500.0,0.00041643,30]
[356702235,1742989872508,-643.1444567,0.00041643,30]
[356702236,1742989872517,-500.0,0.00041643,30]
[356702237,1742989872526,-500.0,0.00041643,30]
[356702238,1742989872535,-500.0,0.00041643,30]
[356702239,1742989872545,-354.57261232,0.00041643,30]
[356702240,1742989872555,-1234.37,0.00041643,30]
[356702241,1742989872565,-500.0,0.00041643,30]
[356702242,1742989872575,-779.98,0.00041643,30]
[356702243,1742989872585,-500.0,0.00041643,30]
[356702244,1742989872595,-507.91434809,0.00041643,30]
[356702245,1742989872606,-7474.69,0.00041643,2]
[356702246,1742989872615,-500.0,0.00041643,30]
[356702247,1742989872627,-500.0,0.00041643,30]
[356702248,1742989872636,-500.0,0.00041643,30]
[356702249,1742989872645,-500.0,0.00041643,30]
[356702250,1742989872655,-500.0,0.00041643,30]
[356702251,1742989872665,-498.51221049,0.00041643,30]
[356702252,1742989872674,-500.0,0.00041643,30]
[356702253,1742989872684,-500.0,0.00041643,30]
[356702254,1742989872694,-500.0,0.00041643,30]
[356702255,1742989872703,-184.960501,0.00041643,30]
[356702256,1742989872712,-500.0,0.00041643,30]
[356702257,1742989872721,-500.0,0.00041643,30]
[356702258,1742989872731,-574.34201122,0.00041643,30]
[356702259,1742989872741,-500.0,0.00041643,30]
[356702260,1742989872751,-500.0,0.00041643,30]
[356702261,1742989872760,-5732.33,0.00041643,30]
[356702262,1742989872770,-1709.94,0.00041643,30]
[356702263,1742989872781,-500.0,0.00041643,30]
[356702264,1742989872791,-500.0,0.00041643,30]
[356702265,1742989872801,-500.0,0.00041643,30]
[356702266,1742989872810,-566.35,0.00041643,30]
[356702267,1742989872820,-902.11,0.00041643,30]
[356702268,1742989872830,-500.0,0.00041643,30]
[356702269,1742989872840,-500.0,0.00041643,30]
[356702270,1742989872850,-500.0,0.00041643,30]
[356702271,1742989872859,-500.0,0.00041643,30]
[356702272,1742989872869,-500.0,0.00041643,30]
[356702273,1742989872879,-500.0,0.00041643,30]
[356702274,1742989872889,-599.770443,0.00041643,30]
[356702275,1742989872898,-1332.55,0.00041643,30]
[356702276,1742989872908,-163.92561337,0.00041643,30]
[356702277,1742989872918,-500.0,0.00041643,30]
[356702278,1742989872928,-500.0,0.00041643,30]
[356702279,1742989872937,-500.0,0.00041643,30]
[356702280,1742989872946,-534.44,0.00041643,30]
[356702281,1742989872955,-500.0,0.00041643,30]
[356702282,1742989872965,-500.0,0.00041643,30]
[356702283,1742989872974,-500.0,0.00041643,30]
[356702284,1742989872984,-500.0,0.00041643,30]
[356702285,1742989872993,-500.0,0.00041643,30]
[356702286,1742989873002,-386.20887501,0.00041643,30]
[356702287,1742989873012,-1162.51,0.00041643,30]
[356702288,1742989873021,-500.0,0.00041643,30]
[356702289,1742989873030,-500.0,0.00041643,30]
[356702290,1742989873040,-500.0,0.00041643,30]
[356702291,1742989873049,-500.0,0.00041643,30]
[356702292,1742989873059,-500.0,0.00041643,30]
[356702293,1742989873069,-500.0,0.00041643,30]
[356702294,1742989873078,-589.02371841,0.00041643,30]
[356702295,1742989873088,-500.0,0.00041643,30]
[356702296,1742989873100,-387.31171242,0.00041643,30]
[356702297,1742989873110,-500.0,0.00041643,30]
[356702298,1742989873120,-500.0,0.00041643,30]
[356702299,1742989873130,-500.0,0.00041643,30]
[356702300,1742989873141,-5897.06,0.00041643,30]
[356702301,1742989873151,-500.0,0.00041643,30]
[356702302,1742989873160,-500.0,0.00041643,30]
[356702303,1742989873170,-500.0,0.00041643,30]
[356702304,1742989873181,-500.0,0.00041643,30]
[356702305,1742989873191,-233.79739918,0.00041643,30]
[356702306,1742989873200,-500.0,0.00041643,30]
[356702307,1742989873211,-500.0,0.00041643,30]
[356702308,1742989873219,-500.0,0.00041643,30]
[356702309,1742989873229,-500.0,0.00041643,30]
[356702310,1742989873239,-531.21252982,0.00041643,30]
[356702311,1742989873248,-500.0,0.00041643,30]
[356702312,1742989873258,-500.0,0.00041643,30]
[356702313,1742989873267,-500.0,0.00041643,30]
[356702314,1742989873276,-500.0,0.00041643,30]
[356702315,1742989873285,-500.0,0.00041643,30]
[356702316,1742989873295,-500.0,0.00041643,30]
[356702317,1742989873304,-530.8,0.00041643,30]
[356702318,1742989873314,-513.54254847,0.00041643,30]
[356702319,1742989873323,-500.0,0.00041643,30]
[356702320,1742989873332,-500.0,0.00041643,30]
[356702321,1742989873342,-500.0,0.00041643,30]
[356702322,1742989873351,-500.0,0.00041643,30]
[356702323,1742989873360,-500.0,0.00041643,30]
[356702324,1742989873369,-1267.25,0.00041643,30]
[356702325,1742989873378,-500.0,0.00041643,30]
[356702326,1742989873388,-500.0,0.00041643,30]
[356702327,1742989873397,-593.39687767,0.00041643,30]
[356702328,1742989873406,-500.0,0.00041643,30]
[356702329,1742989873415,-500.0,0.00041643,30]
[356702330,1742989873424,-500.0,0.00041643,30]
[356702331,1742989873433,-500.0,0.00041643,30]
[356702332,1742989873442,-500.0,0.00041643,30]
[356702333,1742989873452,-500.0,0.00041643,30]
[356702334,1742989873462,-63028.24,0.00041643,30]
[356702335,1742989873472,-500.0,0.00041643,30]
[356702336,1742989873481,-500.0,0.00041643,30]
[356702337,1742989873491,-517.52,0.00041643,30]
[356702338,1742989873501,-563.2884133,0.00041643,30]
[356702339,1742989873510,-500.0,0.00041643,30]
[356702340,1742989873520,-500.0,0.00041643,30]
[356702341,1742989873530,-500.0,0.00041643,30]
[356702342,1742989873539,-500.0,0.00041643,15]
[356702343,1742989873549,-380.25523136,0.00041643,30]
[356702344,1742989873558,-500.0,0.00041643,30]
[356702345,1742989873568,-209.89243066,0.00041643,30]
[356702346,1742989873578,-500.0,0.00041643,30]
[356702347,1742989873588,-500.0,0.00041643,30]
[356702348,1742989873598,-500.0,0.00041643,30]
[356702349,1742989873608,-500.0,0.00041643,30]
[356702350,1742989873617,-500.0,0.00041643,30]
[356702351,1742989873627,-500.0,0.00041643,30]
[356702352,1742989873636,-500.0,0.00041643,30]
[356702353,1742989873646,-1957.89,0.00041643,30]
[356702354,1742989873656,-500.0,0.00041643,30]
[356702355,1742989873665,-500.0,0.00041643,30]
[356702356,1742989873675,-1297.96,0.00041643,30]
[356702357,1742989873685,-500.0,0.00041643,30]
[356702358,1742989873694,-500.0,0.00041643,30]
[356702359,1742989873703,-500.0,0.00041643,30]
[356702360,1742989873713,-500.0,0.00041643,30]
[356702361,1742989873723,-500.0,0.00041643,30]
[356702362,1742989873732,-526.9271131,0.00041643,30]
[356702363,1742989873744,-500.0,0.00041643,30]
[356702364,1742989873753,-500.0,0.00041643,7]
[356702365,1742989873762,-533.150685,0.00041643,30]
[356702366,1742989873772,-500.0,0.00041643,30]
[356702367,1742989873781,-441.31585754,0.00041643,30]
[356702368,1742989873791,-500.0,0.00041643,30]
[356702369,1742989873800,-500.0,0.00041643,30]
[356702370,1742989873810,-506.9013359,0.00041643,30]
[356702371,1742989873819,-500.0,0.00041643,30]
[356702372,1742989873829,-500.0,0.00041643,30]
[356702373,1742989873840,-500.0,0.00041643,30]
[356702374,1742989873849,-500.0,0.00041643,30]
[356702375,1742989873859,-500.0,0.00041643,30]
[356702376,1742989873868,-500.0,0.00041643,30]
[356702377,1742989873878,-559.24266878,0.00041643,30]
[356702378,1742989873888,-535.90649085,0.00041643,30]
[356702379,1742989873897,-500.0,0.00041643,30]
[356702380,1742989873907,-500.0,0.00041643,30]
[356702381,1742989873916,-500.0,0.00041643,30]
[356702382,1742989873926,-500.0,0.00041643,30]
[356702383,1742989873934,-500.0,0.00041643,30]
[356702384,1742989873943,-500.0,0.00041643,30]
[356702385,1742989873953,-500.0,0.00041643,30]
[356702386,1742989873963,-866.15,0.00041643,30]
[356702387,1742989873972,-500.0,0.00041643,30]
[356702388,1742989873981,-500.0,0.00041643,30]
[356702389,1742989873991,-1500.0,0.00041643,30]
[356702390,1742989874001,-500.0,0.00041643,30]
[356702391,1742989874010,-500.0,0.00041643,30]
[356702392,1742989874020,-500.0,0.00041643,30]
[356702393,1742989874030,-500.0,0.00041643,30]
[356702394,1742989874039,-500.0,0.00041643,30]
[356702395,1742989874049,-500.0,0.00041643,30]
[356702396,1742989874059,-500.0,0.00041643,30]
[356702397,1742989874069,-1816.31,0.00041643,30]
[356702398,1742989874168,-500.0,0.00041643,30]
[356702399,1742989874189,-514.15510456,0.00041643,30]
[356702400,1742989874200,-500.0,0.00041643,30]
[356702401,1742989874209,-581.50079454,0.00041643,30]
[356702402,1742989874219,-500.0,0.00041643,30]
[356702403,1742989874229,-500.0,0.00041643,30]
[356702404,1742989874239,-500.0,0.00041643,30]
[356702405,1742989874248,-515.44289785,0.00041643,30]
[356702406,1742989874258,-500.0,0.00041643,30]
[356702407,1742989874268,-778.66,0.00041643,30]
[356702408,1742989874278,-500.0,0.00041643,30]
[356702409,1742989874288,-563.94,0.00041643,30]
[356702410,1742989874298,-500.0,0.00041643,30]
[356702411,1742989874309,-500.0,0.00041643,30]
[356702412,1742989874319,-500.0,0.00041643,30]
[356702413,1742989874329,-500.0,0.00041643,30]
[356702414,1742989874338,-500.0,0.00041643,30]
[356702415,1742989874348,-531.27240744,0.00041643,30]
[356702416,1742989874358,-550.73523274,0.00041643,30]
[356702417,1742989874367,-500.0,0.00041643,30]
[356702418,1742989874376,-500.0,0.00041643,30]
[356702419,1742989874386,-500.0,0.00041643,30]
[356702420,1742989874395,-500.0,0.00041643,30]
[356702421,1742989874405,-500.0,0.00041643,30]
[356702422,1742989874415,-529.55289333,0.00041643,30]
[356702423,1742989874425,-500.0,0.00041643,30]
[356702424,1742989874435,-500.0,0.00041643,30]
[356702425,1742989874444,-500.0,0.00041643,30]
[356702426,1742989874454,-3131.81,0.00041643,30]
[356702427,1742989874464,-554.08954266,0.00041643,30]
[356702428,1742989874474,-500.0,0.00041643,30]
[356702429,1742989874483,-500.0,0.00041643,30]
[356702430,1742989874493,-576.14203384,0.00041643,30]
[356702431,1742989874502,-500.0,0.00041643,30]
[356702432,1742989874512,-500.0,0.00041643,30]
[356702433,1742989874522,-500.0,0.00041643,30]
[356702434,1742989874531,-500.0,0.00041643,30]
[356702435,1742989874546,-500.0,0.00041643,30]
[356702436,1742989874607,-500.0,0.00041643,30]
[356702437,1742989874725,-500.0,0.00041643,30]
[356702438,1742989874821,-500.0,0.00041643,30]
[356702439,1742989874971,-500.0,0.00041643,30]
[356702440,1742989875027,-548.69171659,0.00041643,30]
[356702441,1742989875172,-500.0,0.00041643,30]
[356702442,1742989875254,-515.6923131,0.00041643,30]
[356702443,1742989875390,-511.99054722,0.00041643,30]
[356702444,1742989875488,-544.4987558,0.00041643,30]
[356702445,1742989875569,-500.0,0.00041643,30]
[356702446,1742989875679,-500.0,0.00041643,30]
[356702447,1742989875760,-154.44897831,0.00041643,30]
[356702448,1742989875773,-500.0,0.00041643,30]
[356702449,1742989875783,-500.0,0.00041643,30]
[356702450,1742989875794,-544.45361143,0.00041643,30]
[356702451,1742989875804,-651.46,0.00041643,7]
[356702452,1742989875814,-500.0,0.00041643,2]
[356702453,1742989875824,-500.0,0.00041643,30]
[356702454,1742989875834,-626.87533841,0.00041643,30]
[356702455,1742989875843,-500.0,0.00041643,2]
[356702456,1742989875852,-500.0,0.00041643,30]
[356702457,1742989875862,-500.0,0.00041643,30]
[356702458,1742989875872,-500.0,0.00041643,30]
[356702459,1742989875882,-554.52125048,0.00041643,30]
[356702460,1742989875892,-617.91120293,0.00041643,30]
[356702461,1742989875902,-500.0,0.00041643,30]
[356702462,1742989875912,-500.0,0.00041643,30]
[356702463,1742989875921,-500.0,0.00041643,30]
[356702464,1742989875931,-500.0,0.00041643,30]
[356702465,1742989875941,-786.66,0.00041649,30]
[356702466,1742989875950,-786.66,0.00041649,30]
[356702467,1742989875960,-786.66,0.00041649,30]
[356702468,1742989875970,-786.66,0.00041649,30]
[356702469,1742989875980,-786.73873975,0.00041649,30]
[356702470,1742989875990,-174265.08903948,0.0004165,7]
[356702471,1742989876000,-167.27,0.00041675,2]
[356702472,1742989876010,-150.0,0.00041678,10]
[356702473,1742989876019,-150.0,0.0004176,10]
[356702474,1742989876029,-1064.0,0.0004179,30]
[356702475,1742989876039,-1007.03,0.00041799,30]
[356702476,1742989876048,-1007.03,0.00041799,30]
[356702477,1742989876060,-1007.03,0.00041799,30]
[356702478,1742989876069,-1007.03,0.00041799,30]
[356702479,1742989876080,-1007.09261169,0.00041799,30]
[356702480,1742989876090,-2851.95,0.000418,2]
[356702481,1742989876102,-13438.87,0.000418,2]
[356702482,1742989876113,-1760.26144412,0.00041817,15]
[356702483,1742989876123,-4800.12793764,0.00041817,15]
[356702484,1742989876133,-150.0,0.00041842,10]
[356702485,1742989876144,-316.59765248,0.00041887,2]
[356702486,1742989876154,-1500.0,0.000419,15]
[356702487,1742989876164,-152.0,0.00041911,7]
[356702488,1742989876174,-488.388934,0.00041917,30]
[356702489,1742989876184,-348.343309,0.00041917,30]
[356702490,1742989876194,-500.0,0.00041917,30]
[356702491,1742989876204,-500.0,0.00041917,30]
[356702492,1742989876214,-2773.69,0.00041917,30]
[356702493,1742989876224,-500.0,0.00041917,30]
[356702494,1742989876234,-500.0,0.00041917,30]
[356702495,1742989876244,-500.0,0.00041917,2]
[356702496,1742989876253,-500.0,0.00041917,30]
[356702497,1742989876263,-514.17469667,0.00041917,30]
[356702498,1742989876272,-552.92,0.00041917,30]
[356702499,1742989876282,-500.0,0.00041917,30]
[356702500,1742989876291,-669.0,0.00041917,30]
[356702501,1742989876301,-500.0,0.00041917,30]
[356702502,1742989876311,-476.97516028,0.00041917,30]
[356702503,1742989876320,-779.48,0.00041917,30]
[356702504,1742989876330,-263.65074937,0.00041917,30]
[356702505,1742989876341,-500.0,0.00041917,30]
[356702506,1742989876351,-2314.65,0.00041917,30]
[356702507,1742989876361,-1144.12,0.00041917,30]
[356702508,1742989876371,-500.0,0.00041917,30]
[356702509,1742989876380,-525.01085802,0.00041917,2]
[356702510,1742989876390,-500.0,0.00041917,30]
[356702511,1742989876400,-2936.97,0.00041917,30]
[356702512,1742989876410,-500.0,0.00041917,120]
[356702513,1742989876421,-500.0,0.00041917,30]
[356702514,1742989876431,-500.0,0.00041917,2]
[356702515,1742989876442,-500.0,0.00041917,30]
[356702516,1742989876452,-500.0,0.00041917,30]
[356702517,1742989876464,-500.0,0.00041917,30]
[356702518,1742989876475,-500.0,0.00041917,30]
[356702519,1742989876486,-538.61,0.00041917,10]
[356702520,1742989876496,-500.0,0.00041917,30]
[356702521,1742989876507,-500.0,0.00041917,30]
[356702522,1742989876519,-818.4,0.00041917,30]
[356702523,1742989876530,-537.87723342,0.00041917,30]
[356702524,1742989876540,-500.0,0.00041917,30]
[356702525,1742989876551,-546.99,0.00041917,30]
[356702526,1742989876561,-500.0,0.00041917,30]
[356702527,1742989876572,-163.03684499,0.00041917,30]
[356702528,1742989876582,-500.0,0.00041917,30]
[356702529,1742989876592,-1205.22,0.00041917,30]
[356702530,1742989876601,-500.0,0.00041917,30]
[356702531,1742989876609,-500.0,0.00041917,30]
[356702532,1742989876616,-500.0,0.00041917,30]
[356702533,1742989876623,-455.25185477,0.00041917,30]
[356702534,1742989876631,-211.11286946,0.00041917,30]
[356702535,1742989876639,-500.0,0.00041917,30]
[356702536,1742989876650,-500.0,0.00041917,30]
[356702537,1742989876660,-500.0,0.00041917,30]
[356702538,1742989876671,-222.35570347,0.00041917,30]
[356702539,1742989876681,-500.0,0.00041917,30]
[356702540,1742989876691,-507.17627231,0.00041917,30]
[356702541,1742989876701,-500.0,0.00041917,30]
[356702542,1742989876711,-500.0,0.00041917,30]
[356702543,1742989876721,-500.0,0.00041917,30]
[356702544,1742989876731,-336.36424649,0.00041917,30]
[356702545,1742989876741,-500.0,0.00041917,30]
[356702546,1742989876752,-500.0,0.00041917,30]
[356702547,1742989876762,-500.0,0.00041917,30]
[356702548,1742989876773,-500.0,0.00041917,30]
[356702549,1742989876782,-500.0,0.00041917,30]
[356702550,1742989876793,-500.0,0.00041917,30]
[356702551,1742989876804,-411.64938499,0.00041917,30]
[356702552,1742989876814,-439.31265934,0.00041917,30]
[356702553,1742989876825,-500.0,0.00041917,30]
[356702554,1742989876836,-500.0,0.00041917,30]
[356702555,1742989876846,-500.0,0.00041917,30]
[356702556,1742989876857,-500.0,0.00041917,30]
[356702557,1742989876867,-351.80323784,0.00041917,30]
[356702558,1742989876877,-500.0,0.00041917,30]
[356702559,1742989876888,-500.0,0.00041917,30]
[356702560,1742989876898,-1234.37,0.00041917,30]
[356702561,1742989876909,-500.0,0.00041917,30]
[356702562,1742989876920,-779.98,0.00041917,30]
[356702563,1742989876931,-500.0,0.00041917,30]
[356702564,1742989876941,-7474.69,0.00041917,2]
[356702565,1742989876951,-500.0,0.00041917,30]
[356702566,1742989876962,-500.0,0.00041917,30]
[356702567,1742989876972,-500.0,0.00041917,30]
[356702568,1742989876983,-500.0,0.00041917,30]
[356702569,1742989876992,-500.0,0.00041917,30]
[356702570,1742989877002,-307.00980184,0.00041917,30]
[356702571,1742989877012,-500.0,0.00041917,30]
[356702572,1742989877023,-500.0,0.00041917,30]
[356702573,1742989877033,-500.0,0.00041917,30]
[356702574,1742989877043,-500.0,0.00041917,30]
[356702575,1742989877053,-500.0,0.00041917,30]
[356702576,1742989877063,-5732.33,0.00041917,30]
[356702577,1742989877072,-1709.94,0.00041917,30]
[356702578,1742989877082,-500.0,0.00041917,30]
[356702579,1742989877094,-500.0,0.00041917,30]
[356702580,1742989877104,-500.0,0.00041917,30]
[356702581,1742989877114,-500.0,0.00041917,30]
[356702582,1742989877123,-566.35,0.00041917,30]
[356702583,1742989877135,-902.11,0.00041917,30]
[356702584,1742989877144,-173.92555013,0.00041917,30]
[356702585,1742989877154,-500.0,0.00041917,30]
[356702586,1742989877164,-500.0,0.00041917,30]
[356702587,1742989877175,-500.0,0.00041917,30]
[356702588,1742989877185,-500.0,0.00041917,30]
[356702589,1742989877195,-500.0,0.00041917,30]
[356702590,1742989877205,-1332.55,0.00041917,30]
[356702591,1742989877215,-500.0,0.00041917,30]
[356702592,1742989877225,-346.38778166,0.00041917,30]
[356702593,1742989877235,-500.0,0.00041917,30]
[356702594,1742989877245,-534.44,0.00041917,30]
[356702595,1742989877256,-500.0,0.00041917,30]
[356702596,1742989877266,-500.0,0.00041917,30]
[356702597,1742989877276,-500.0,0.00041917,30]
[356702598,1742989877286,-500.0,0.00041917,30]
[356702599,1742989877296,-500.0,0.00041917,30]
[356702600,1742989877305,-1162.51,0.00041917,30]
[356702601,1742989877315,-500.0,0.00041917,30]
[356702602,1742989877325,-318.98105196,0.00041917,30]
[356702603,1742989877335,-500.0,0.00041917,30]
[356702604,1742989877344,-248.12122333,0.00041917,30]
[356702605,1742989877356,-500.0,0.00041917,30]
[356702606,1742989877366,-500.0,0.00041917,30]
[356702607,1742989877376,-500.0,0.00041917,30]
[356702608,1742989877386,-500.0,0.00041917,30]
[356702609,1742989877397,-500.0,0.00041917,30]
[356702610,1742989877406,-500.0,0.00041917,30]
[356702611,1742989877417,-5897.06,0.00041917,30]
[356702612,1742989877427,-500.0,0.00041917,30]
[356702613,1742989877438,-597.78484686,0.00041917,30]
[356702614,1742989877448,-500.0,0.00041917,30]
[356702615,1742989877457,-500.0,0.00041917,30]
[356702616,1742989877467,-500.0,0.00041917,30]
[356702617,1742989877477,-500.0,0.00041917,30]
[356702618,1742989877487,-500.0,0.00041917,30]
[356702619,1742989877496,-605.21611806,0.00041917,30]
[356702620,1742989877506,-500.0,0.00041917,30]
[356702621,1742989877515,-500.0,0.00041917,30]
[356702622,1742989877526,-500.0,0.00041917,30]
[356702623,1742989877535,-179.06554115,0.00041917,30]
[356702624,1742989877545,-500.0,0.00041917,30]
[356702625,1742989877554,-576.16606756,0.00041917,30]
[356702626,1742989877563,-530.8,0.00041917,30]
[356702627,1742989877572,-524.71445392,0.00041917,30]
[356702628,1742989877582,-648.2163416,0.00041917,30]
[356702629,1742989877592,-500.0,0.00041917,30]
[356702630,1742989877601,-625.68152304,0.00041917,30]
[356702631,1742989877610,-500.0,0.00041917,30]
[356702632,1742989877620,-1267.25,0.00041917,30]
[356702633,1742989877629,-500.0,0.00041917,30]
[356702634,1742989877638,-500.0,0.00041917,30]
[356702635,1742989877647,-517.54278348,0.00041917,30]
[356702636,1742989877656,-500.0,0.00041917,30]
[356702637,1742989877665,-500.0,0.00041917,30]
[356702638,1742989877674,-500.0,0.00041917,30]
[356702639,1742989877684,-500.0,0.00041917,30]
[356702640,1742989877693,-500.0,0.00041917,30]
[356702641,1742989877707,-63028.24,0.00041917,30]
[356702642,1742989877718,-500.0,0.00041917,30]
[356702643,1742989877728,-500.0,0.00041917,30]
[356702644,1742989877738,-517.52,0.00041917,30]
[356702645,1742989877748,-500.0,0.00041917,30]
[356702646,1742989877758,-500.0,0.00041917,30]
[356702647,1742989877767,-500.0,0.00041917,30]
[356702648,1742989877777,-564.01049011,0.00041917,15]
[356702649,1742989877786,-500.0,0.00041917,30]